Cogmind - Beta 9.3 @@@ ROGUE MODE // 2019.12.24 @ 12:16:08 // Winter2019/RPGLIKE Player: Rumbl3 Result: Destroyed by DAS Turret with DAS Cannon Performance ------------- Evolutions (0) 0 Regions Visited (3) 600 Robots Destroyed (10) 50 Value Destroyed (186) 186 Prototype IDs (0) 0 Alien Tech Used (0) 0 Bonus (-27) -27 TOTAL SCORE: 809 Bonus ------- Friendly Fire -27 Cogmind --------- Core Integrity 0/600 Matter 300/300 Energy 246/250 System Corruption 0% Temperature Cool (4) Movement Hovering (56) Location -10/Exiles Parts ------- > --- POWER (1) -------- Ion Engine > --- PROPULSION (2) --- Hover Unit Hover Unit > --- UTILITY (2) ------ Improved Terrain Scanner Seismic Analyzer > --- WEAPON (2) ------- Assault Rifle > --- INVENTORY (2) ---- Hover Unit Light Assault Rifle Peak State ------------ > --- POWER ------------ Light Ion Engine > --- PROPULSION ------- Wheel Compact Wheel > --- UTILITY ---------- Improved Terrain Scanner Seismic Analyzer > --- WEAPON ----------- Small Laser Assault Rifle > --- INVENTORY -------- (None) [Rating: 8] Favorites ----------- Power Ion Engine Engine Ion Engine Propulsion Hover Unit Leg Aluminum Leg Wheel Wheel Hover Unit Hover Unit Utility Seismic Analyzer Device Improved Terrain Scanner Processor Seismic Analyzer Weapon Assault Rifle Energy Gun Medium Laser Ballistic Gun Assault Rifle Build | -11 -10 -10 -10 ------- Run | Scr Mat Min Exi Slots Evolved 3 | 3 . . . Power . | . . . . Propulsion 1 | 1 . . . Utility 1 | 1 . . . Weapon 1 | 1 . . . Parts Attached 10 | 5 3 2 . Power 1 | . . 1 . Engine 1 | . . 1 . Core . | . . . . Reactor . | . . . . Propulsion 5 | 2 2 1 . Treads . | . . . . Leg . | . . . . Wheel 2 | 2 . . . Hover 3 | . 2 1 . Flight . | . . . . Utility 2 | 2 . . . Device 1 | 1 . . . Storage . | . . . . Processor 1 | 1 . . . Hackware . | . . . . Protection . | . . . . Artifact . | . . . . Weapon 2 | 1 1 . . Energy Gun 2 | 1 1 . . Energy Cannon . | . . . . Ballistic Gun . | . . . . Ballistic Cannon . | . . . . Launcher . | . . . . Special Weapon . | . . . . Impact Weapon . | . . . . Slashing Weapon . | . . . . Piercing Weapon . | . . . . Special Melee Weapon . | . . . . Unidentified Prototypes . | . . . . Parts Lost 1 | . . . 1 Power . | . . . . Propulsion . | . . . . Utility . | . . . . Weapon 1 | . . . 1 Highest Loss Streak 1 | . . . 1 Average Slot Usage (%) 100 | . 100 100 100 Engine 14 | . 14 14 14 Wheel 4 | . 16 . . Hover 23 | . 11 28 28 Device 14 | . 14 14 14 Processor 14 | . 14 14 14 Energy Gun 14 | . 14 14 14 Ballistic Gun 14 | . 14 14 14 Naked Turns . | . . . . Heaviest Build 10 | 7 8 10 10 Greatest Support 31 | 31 31 17 17 Greatest Overweight (x) . | . . . . Average Overweight (x) . | . . . . Largest Inventory Capacity 2 | 2 2 2 2 Average Capacity 1 | 1 2 2 2 Most Carried 2 | 2 2 2 2 Average Carried 1 | . 2 1 2 Final Capacity 2 | 2 2 2 2 Final Carried 2 | 2 2 2 2 Class Distribution -------------------- 100% | Mutant Dominant Class ---------------- Mutant | -10/Materials Mutant | -10/Mines Mutant | -10/Exiles Resources | -11 -10 -10 -10 ----------- Run | Scr Mat Min Exi Matter Collected 420 | 255 69 96 . Remotely . | . . . . Salvage Created 480 | 102 69 309 . Parts 28 | 6 8 14 . Haulers Intercepted 1 | . 1 . . Recyclers Shooed . | . . . . Parts Field Recycled . | . . . . Retrieved Matter . | . . . . Parts Self-Destructed . | . . . . Prevented . | . . . . Kills | -11 -10 -10 -10 ------- Run | Scr Mat Min Exi Combat Hostiles Destroyed 4 | . . 4 . Guns 4 | . . 4 . Classes Destroyed 5 | 2 2 1 . Worker 2 | . 1 1 . Tunneler 2 | 1 . 1 . Hauler 1 | . 1 . . Recycler 1 | 1 . . . Grunt 4 | . . 4 . Best Kill Streak 3 | 1 1 3 . Combat Bots Only 2 | . . 2 . Max Kills in Single Turn 2 | 1 1 2 . Gunslinging . | . . . . Exploded . | . . . . Melee . | . . . . Uniques/NPCs Destroyed . | . . . . Combat | -11 -10 -10 -10 -------- Run | Scr Mat Min Exi Damage Taken 752 | . . 594 158 Core 610 | . . 474 136 Absorbed by Shields . | . . . . Redirected to Core 490 | . . 405 85 Core Remaining (%) 100 | 100 . . . Volleys Fired 43 | 10 6 26 1 Largest 2 | 2 2 2 2 Hottest 70 | 60 70 70 70 Shots Fired 83 | 19 12 50 2 Gun 83 | 19 12 50 2 Cannon . | . . . . Launcher . | . . . . Special . | . . . . Kinetic 41 | 10 6 24 1 Thermal 42 | 9 6 26 1 Explosive . | . . . . Electromagnetic . | . . . . Robot Hit Streak 10 | 3 6 10 3 Robot Miss Streak 5 | 1 5 2 . Penetration Max . | . . . . Secondary Targets 1 | . . 1 . Max Gunslinging Chain 1 | . . 1 . Shots Hit Robots 55 | 11 7 35 2 Core Hits 20 | 3 4 12 1 Critical Hits . | . . . . Critical Kills . | . . . . Critical Parts Destroyed . | . . . . Melee Attacks . | . . . . Impact . | . . . . Slashing . | . . . . Piercing . | . . . . Sneak Attacks . | . . . . Combat Hostiles . | . . . . Follow-up Attacks . | . . . . Damage Inflicted 743 | 152 103 461 27 Guns 743 | 152 103 461 27 Cannons . | . . . . Explosions . | . . . . Melee . | . . . . Ramming . | . . . . Kinetic 377 | 97 54 212 14 Thermal 366 | 55 49 249 13 Explosive . | . . . . Electromagnetic . | . . . . Impact . | . . . . Slashing . | . . . . Piercing . | . . . . Highest Corruption . | . . . . Average Corruption . | . . . . Corruption Purged . | . . . . Overload Shots . | . . . . Overflow Damage . | . . . . Projectiles . | . . . . Explosions . | . . . . Melee . | . . . . Knockbacks . | . . . . Impact . | . . . . Kinetic . | . . . . Secondary . | . . . . Self-Inflicted Damage . | . . . . Shots . | . . . . Rammed . | . . . . Targets Rammed . | . . . . Kicked . | . . . . Crushed . | . . . . Highest Temperature 294 | . 30 294 15 Average Temperature 121 | . 14 133 7 Received Heat Transfer 336 | . . 336 . Effects 1 | . . 1 . Interference 1 | . . 1 . Siege Activations . | . . . . Robots Corrupted . | . . . . Combat Hostiles . | . . . . Parts Fried . | . . . . Impact Corruptions . | . . . . Robots Melted . | . . . . Combat Hostiles . | . . . . Parts Melted 2 | . . 2 . Heat Transferred 1038 | 125 136 740 37 Parts Sabotaged . | . . . . Parts Stolen . | . . . . Parts Stripped . | . . . . Power Chain Reactions . | . . . . Missiles Intercepted . | . . . . Alert | -11 -10 -10 -10 ------- Run | Scr Mat Min Exi Peak Influence 126 | 10 43 126 . Average Influence 52 | 5 23 79 . Maximum Alert Level . | . . . . Low Security (%) 100 | 100 100 100 . Level 1 . | . . . . Level 2 . | . . . . Level 3 . | . . . . Level 4 . | . . . . Level 5 . | . . . . High Security . | . . . . Max Security . | . . . . Squads Dispatched . | . . . . Investigation . | . . . . Extermination . | . . . . Reinforcement . | . . . . Assault . | . . . . Garrison . | . . . . Intercept . | . . . . Construction Impeded . | . . . . Haulers Reinforced . | . . . . Stealth | -11 -10 -10 -10 --------- Run | Scr Mat Min Exi Distress Signals . | . . . . Communications Jammed . | . . . . Distress Signals . | . . . . Times Spotted 10 | . 1 4 5 Peak Tracking Total 12 | . 1 2 12 Tactical Retreats 1 | . . . 1 Traps | -11 -10 -10 -10 ------- Run | Scr Mat Min Exi Traps Triggered . | . . . . Indirectly . | . . . . Trap Hack Attempts . | . . . . Triggered . | . . . . Disarmed . | . . . . Reprogrammed . | . . . . Reused . | . . . . Traps Extracted . | . . . . Installed . | . . . . Triggered . | . . . . Machines | -11 -10 -10 -10 ---------- Run | Scr Mat Min Exi Machines Disabled . | . . . . Max in Single Turn . | . . . . Machines Sabotaged . | . . . . Garrisons Compromised . | . . . . Overloaded Fab Kills . | . . . . Fab Network Shutdowns . | . . . . Hacking | -11 -10 -10 -10 --------- Run | Scr Mat Min Exi Machines Accessed 5 | . 4 . 1 Terminals 3 | . 3 . . Fabricators . | . . . . Repair Stations . | . . . . Recycling Units 1 | . 1 . . Scanalyzers . | . . . . Garrison Access . | . . . . Total Hacks 11 | . 10 . 1 Successful 7 | . 6 . 1 Failed 4 | . 4 . . Catastrophic 1 | . 1 . . Database Lockouts . | . . . . Manual 3 | . 3 . . Terminals 8 | . 8 . . Fabricators . | . . . . Repair Stations . | . . . . Recycling Units 2 | . 2 . . Scanalyzers . | . . . . Garrison Access . | . . . . Terminal Hacks 3 | . 2 . 1 Record 1 | . . . 1 Branch Access Points 1 | . 1 . . Locate Traps 1 | . 1 . . Fabricator Hacks . | . . . . Repair Station Hacks . | . . . . Recycling Unit Hacks 2 | . 2 . . Report Inventory 1 | . 1 . . Retrieve Components 1 | . 1 . . Scanalyzer . | . . . . Garrison Access Hacks . | . . . . Unauthorized Hacks 4 | . 4 . . Terminals 2 | . 2 . . Botnet 1 | . 1 . . Operators 1 | . 1 . . Fabricators . | . . . . Repair Stations . | . . . . Recycling Units . | . . . . Scanalyzers . | . . . . Garrison Access . | . . . . Data Cores Recovered . | . . . . Used . | . . . . Hacking Detections 2 | . 2 . . Full Trace Events . | . . . . Feedback Events . | . . . . Feedback Blocked . | . . . . Robot Schematics Acquired . | . . . . Robots Built . | . . . . Matter . | . . . . Time . | . . . . Total Robot Build Rating . | . . . . Part Schematics Acquired . | . . . . Parts Built . | . . . . Matter . | . . . . Time . | . . . . Total Part Build Rating . | . . . . Parts Repaired . | . . . . Time . | . . . . Parts Recycled . | . . . . Recycled Matter . | . . . . Retrieved Matter . | . . . . Retrieved Components 5 | . 5 . . Parts Scanalyzed . | . . . . Part Schematics Acquired . | . . . . Parts Damaged . | . . . . Bothacking | -11 -10 -10 -10 ------------ Run | Scr Mat Min Exi Used RIF Installer . | . . . . Robots Hacked . | . . . . Non-combat . | . . . . Combat . | . . . . Robot Hacks Applied . | . . . . Relay Couplers Released . | . . . . Robots Rewired . | . . . . Allies Hacked . | . . . . Hacks Repelled . | . . . . Allies | -11 -10 -10 -10 -------- Run | Scr Mat Min Exi Total Allies . | . . . . Largest Group . | . . . . Highest-Rated Group . | . . . . Highest-Rated Ally . | . . . . Total Orders . | . . . . Ally Attacks . | . . . . Total Damage . | . . . . Kills . | . . . . Allies Corrupted . | . . . . Allies Melted . | . . . . Intel | -11 -10 -10 -10 ------- Run | Scr Mat Min Exi Robot Analysis Total . | . . . . Derelict Logs Recovered 1 | . . 1 . Drone Launches . | . . . . Drone Recoveries . | . . . . Exploration | -11 -10 -10 -10 ------------- Run | Scr Mat Min Exi Turns Passed 778 | 56 199 309 214 Spaces Moved 1027 | 17 242 391 377 Core . | . . . . Treads . | . . . . Legs 1 | 1 . . . Wheels 116 | 16 100 . . Hover 910 | . 142 391 377 Flight . | . . . . Fastest Speed 56 | 90 56 56 56 Average Speed 60 | 92 70 56 56 Slowest Speed 120 | 120 90 56 56 Overloaded Moves . | . . . . Propulsion Burnouts . | . . . . Robots Hopped . | . . . . Cave-ins Triggered . | . . . . Exploration Rate (%) 49 | 2 50 69 78 Regions Visited 3 Branch Regions 2 Pre-discovered Areas . | . . . . Known Exits Taken 1 | . 1 . . Unknown Exits Taken 2 | 1 . 1 . Scrap Searched 3 | . . 3 . Spaces Dug . | . . . . Terrain Destroyed . | . . . . Melee . | . . . . Projectile . | . . . . AOE . | . . . . Actions | -11 -10 -10 -10 --------- Run | Scr Mat Min Exi Total 1101 | 36 256 431 378 Wait 12 | . 3 9 . Move 1024 | 16 241 390 377 Hop . | . . . . Pick Up 4 | 3 . 1 . Fast Attach 9 | 5 3 1 . Attach . | . . . . Detach . | . . . . Swap 1 | . . 1 . Drop 8 | 2 3 3 . Fire 43 | 10 6 26 1 Melee . | . . . . Ram . | . . . . Kick . | . . . . Crush . | . . . . Escape Stasis . | . . . . Rewire . | . . . . Trap . | . . . . Miscellaneous . | . . . . Route ------- -11/Scrapyard -10/Materials (discovered 4 exits: [*Mat x3] / *Min) -10/Mines (discovered 2 exits: [*Mat] / *Exi) -10/Exiles (discovered 2 exits: [*Min x2]) History --------- Turn | Location | Event 1 | -11/Scrapyard | Discovered new exit (range 1) 5 | -11/Scrapyard | Upgraded with Propulsion slot (x1) 5 | -11/Scrapyard | Upgraded with Utility slot (x1) 5 | -11/Scrapyard | Upgraded with Weapon slot (x1) 57 | -11/Scrapyard | Entered Materials 95 | -10/Materials | Discovered new exit (range 8) 192 | -10/Materials | Discovered new exit (range 11) 205 | -10/Materials | Identified exit to Mines 238 | -10/Materials | Discovered new exit (range 6) 256 | -10/Materials | Entered Mines 264 | -10/Mines | Learned 4 Materials zone layouts 308 | -10/Mines | Build established: Mutant 381 | -10/Mines | Deemed a non-threat by the Exiles lab entrance 381 | -10/Mines | Discovered new exit (range 5) 396 | -10/Mines | Discovered new exit (range 11) 397 | -10/Mines | Core integrity fell below 50% 565 | -10/Mines | Entered Exiles 576 | -10/Exiles | Discovered new exit (range 14) 592 | -10/Exiles | Met 8R-AWN 601 | -10/Exiles | Met EX-HEX 623 | -10/Exiles | Met EX-BIN 674 | -10/Exiles | Met EX-DEC 703 | -10/Exiles | Discovered new exit (range 14) 749 | -10/Exiles | Visited The Gauntlet 774 | -10/Exiles | Attacked by the Exiles 777 | -10/Exiles | Core integrity fell below 20% 779 | -10/Exiles | Destroyed by DAS Turret with DAS Cannon Last Messages --------------- I'm not complaining though, nope, not me! I get that having only half of the bot ever arrive at its destination is tough on maintenance, and they said there likely wouldn't be any breakthroughs in the near term so they're doing FarCom instead. EX-DEC: Ah I see we have a visitor. One wrong move in here and I'll invert your atomic chain! 00676_ EX-DEC: "Oops, I hope HEX didn't hear that..." 00679_ Connecting with EX-Message Board... >>Record "MSG003946-01" I think we should all make a trip up to the Graveyard and see what that place is like now. After all this time it could be filled with so many interesting things to dissect! --BIN 00703_ EXIT=FOUND J5-HVA: Are you here to join us? Sorry but we don't have any workstations ready for assignment just yet. We're probably going to have to pack up and move anyway, seeing as the Mines are expanding a bit too close for comfort. 00774_ EXILES: Hostile robot within lab perimeter. Defensive protocols time, folks! 00776_ Med. Laser destroyed. Map ----- +----------------------------------------------------+ | ""#####?#?####"" """##??#???## """""?? | | ##?#?####???##"" ########## """###? | | ####??########"" ######?###" "X" """"" ? | | ###?###?##?#?#"" "#####?#??#" """ # "" | | "#####??####?# ""#?##???###" """""""""# "? | | ###?##?#??#?#"" ""##?#?#####" ########### "? | | #####?#?##### ####??#####"" ##?###?##?#?## | | ######?#?### ##########"" #?#??##?#####? | | """#####X# #"###""""""" ######?###???? | | """""" " "" ###?######### | | # "" """ " #####""""""" | | ## " " " """ " | | ?### "" | | ###### " | | ??##### | | ??#?#?## | | #####?###" | | #?#?#?###""" """""" | | ?#?#???##" ######""" | | ?#?????#"" ""###???#####""" | | #???####""" """#####??######""" | | ?####?#""" """####?????#####"""" | | ##????#""" ""##?#?###???###"" | | #?????#"" #########?####"""" | | ##??###"""t ##aaa####""" | | #??#??#"" @ """" | | ?####?##"" a | | #???####"""" a | | ?????#### " | | ????????#" " "" """ | | ???????##""""c ""## ##""" " " ""#" | | #??#????#"" ""#### ######""" """##" | | ????##?##" """"##### ####??#??"?"#?## | | ???##?#?#""" """#???# #??#???????????? | | ???#?#??## ""##?## ??###?????????? | | ?????##??#"" """###?##" ?#??????????? | | ?????######""" #####?#" ?????????????? | | ???#??##?###"""" ##?###???!""!"??#?????????? | | ??????####?### #?#?#?#??######???????????? | | ???##??#?#???##### #######??##????#???????????? | | ?????#?#?#?#####?## #?#########????#???????????? | | ?????#??###?###?### #?#??#####?????????????????? | | ?????#??######?##?# ###?###??#?#???????????????? | | ??????????##??##??# #?#?####?##?#??????????????? | | ?????#???#?#####??# #???#?#######??????????????? | | ??????#????"??"#### ##?###?####????????????????? | | ???????#""?""?"???# #???###????#???????????????? | | ???????#"??"""?##?# ####?#???##?##?????????????? | | ??????????? ""?##?# ##???#?##?#????????????????? | | ??????##""? "??#?# ##???#???##??#?????????????? | +----------------------------------------------------+ Best States ------------- Heat Dissipation 25 Energy Generation 10 Energy Capacity 250 Matter Stores 300 Matter Capacity 300 Sight Range 17 Robot Scan Range 2 Terrain Scan Range 16 Terrain Scan Density 260 Evasion (%) 53 Item Schematics ----------------- None Robot Schematics ------------------ None Fabricated ------------ Nothing Alien Tech Used ----------------- None Achievements -------------- None Challenges ------------ None RPGLIKE | -11 -10 -10 -10 --------- Run | Scr Mat Min Exi Levels Raised . | . . . . XP Earned 4270 | 3000 70 1000 200 XP Spent 2620 | 2550 70 . . Upgrades 10 | 9 1 . . Propulsion Slot 1 | 1 . . . Utility Slot 1 | 1 . . . Weapon Slot 1 | 1 . . . Mass Support 1 | 1 . . . Inventory Capacity 2 | 2 . . . Sight Range 1 | 1 . . . Sensor Range 1 | 1 . . . Terrain Scan Density 2 | 1 1 . . Protomatter Created . | . . . . Protomatter Decayed . | . . . . Game ------ Seed MiniPhaseProtomatter Manual? 0 Play Time 00:14:43 Cumulative 298.2 hours Start 2019.12.24 @ 12:04:04 End 2019.12.24 @ 12:16:08 Sessions 1 Manual Loads 0 Difficulty Rogue Special Mode Winter2019/RPGLIKE Game No. 126 Rogue 126 Adventurer 0 Explorer 0 Win Type - Total 8 Types 7/0/0/1/0/0/0 Lore% 81 Gallery% 82 Achievement% 62 Wizard Run 0 Options --------- ASCII 0 Keyboard 0 Movement Numpad Keybinds 0 Fullscreen 0 Font 14/Dina Map View 76x50 Tactical HUD 1 Map Filters NONE Filters NONE Steam 1 RUN: 46d5a817-ff4f-4606-a4ab-fcd94ec921ab